bitfinex-derivatives/quotes_ETHF0:USTF0_20260116
["timestamp","ask_amount","ask_price","bid_price","bid_amount"]
[1768588571543,0.54321058,3285.2,3283.6,40.8]
[1768588571960,0.54321058,3285.2,3283.6,40.80355439]
[1768588577758,0.54321058,3285.2,3283.7,0.57459269]
[1768588580962,0.54321058,3285.7,3283.9,0.57459269]
[1768588581167,0.54321058,3285.7,3284.2,1.56292006]
[1768588581368,0.15223,3286.0,3284.2,1.56292006]
[1768588581672,0.15223,3286.0,3284.4,0.56848281]
[1768588582758,0.15223,3286.0,3284.3,40.8]
[1768588582759,0.56968527,3286.5,3284.7,0.56848281]
[1768588585159,0.56968527,3286.5,3285.0,1.55681018]
[1768588585363,0.56968527,3286.9,3285.4,0.98832737]
[1768588586081,0.56968527,3286.9,3285.1,0.56848281]
[1768588588780,0.56968527,3286.9,3285.1,0.72075281]
[1768588589387,0.57335967,3287.7,3285.9,0.53473385]
[1768588589790,0.57335967,3287.7,3286.0,41.33473385]
[1768588590275,0.57719972,3287.7,3286.0,41.33744994]
[1768588597499,0.57719972,3287.7,3286.1,0.53473385]
[1768588603695,0.57719972,3287.7,3286.0,44.48071609]
[1768588604797,1.56552709,3287.7,3286.0,44.48071609]
[1768588605496,0.57335967,3287.2,3286.0,0.00271609]
[1768588605694,0.57335967,3286.8,3284.8,0.53473385]
[1768588606002,0.57335967,3286.8,3285.0,40.8]
[1768588606198,0.57335967,3286.8,3285.0,44.485]
[1768588606693,0.57335967,3286.8,3285.4,0.98832737]
[1768588606999,2.06335967,3287.3,3285.4,1.52306122]
[1768588607984,1.84616,3287.5,3285.6,0.53473385]
[1768588608191,1.84616,3287.5,3285.8,0.98832737]
[1768588608994,2.41951967,3287.5,3285.6,0.53473385]
[1768588609394,0.98841759,3287.3,3285.9,0.98841759]
[1768588611289,2.41951967,3287.5,3285.6,0.53473385]
[1768588611485,0.55058943,3287.4,3285.6,0.53473385]
[1768588614899,0.55058943,3287.4,3285.7,0.5576224]
[1768588619108,0.55058943,3287.4,3285.6,0.15224]
[1768588621599,0.55058943,3287.4,3285.8,0.5576224]
[1768588621799,0.55442948,3287.7,3285.9,0.5576224]
[1768588622000,0.70274943,3287.5,3285.3,4.52584936]
[1768588622207,0.55058943,3287.3,3285.4,41.5098724]
[1768588623407,0.55058943,3287.0,3285.2,3.81596696]
[1768588623599,0.55058943,3286.8,3285.0,0.00231978]
[1768588623799,0.55058943,3286.4,3285.0,0.00231978]
[1768588623997,0.55058943,3286.2,3285.0,0.00231978]
[1768588625398,0.1522,3286.5,3285.0,0.00231978]
[1768588625801,0.55058943,3286.6,3285.0,0.00231978]
[1768588626106,0.55058943,3287.1,3285.0,0.55994218]
[1768588626305,1.42973002,3287.0,3285.0,0.55994218]
[1768588626506,0.87914059,3286.9,3285.0,0.55994218]
[1768588626704,0.87914059,3286.8,3285.0,0.55994218]
[1768588626907,1.42973002,3286.7,3285.0,0.55994218]
[1768588627113,0.55058943,3286.7,3285.0,0.55994218]
[1768588627699,0.70276943,3287.0,3285.0,0.55994218]
[1768588627895,0.55058943,3286.8,3285.0,0.55994218]
[1768588629007,0.55058943,3286.8,3285.1,0.5576224]
[1768588629204,1.42335115,3287.9,3285.3,0.7098724]
[1768588629205,0.55058943,3287.2,3285.3,0.7098724]
[1768588629410,0.55058943,3287.2,3285.4,0.5576224]
[1768588629907,0.55058943,3287.2,3285.5,40.8]
[1768588635303,0.98865748,3286.8,3285.5,0.98865748]
[1768588636409,0.15216,3287.4,3286.2,0.98865748]
[1768588637215,1.53924691,3287.6,3286.2,0.98865748]
[1768588638006,0.55058943,3287.6,3286.2,0.98865748]
[1768588638306,1.53924691,3287.6,3286.2,0.98865748]
[1768588638803,0.00384005,3287.7,3286.7,0.98865748]
[1768588639617,0.00384005,3287.7,3286.3,0.5576224]
[1768588639917,0.00384005,3287.7,3286.7,0.98865748]
[1768588641013,0.00384005,3287.7,3286.6,0.98865748]
[1768588641410,0.00384005,3287.7,3286.3,0.5576224]
[1768588642120,0.00384005,3287.7,3286.4,40.8]
[1768588643010,0.00384005,3287.7,3286.3,0.5576224]
[1768588643519,0.00384005,3287.7,3286.3,41.3576224]
[1768588645620,0.00384005,3287.7,3286.4,0.53202748]
[1768588646620,0.54323478,3287.7,3285.9,0.53202748]
[1768588654815,0.54584525,3287.5,3285.7,40.8]
[1768588657328,0.54584525,3287.5,3285.7,41.38634935]
[1768588657931,0.54584525,3287.5,3285.6,0.15224]
[1768588658130,0.54584525,3287.5,3285.6,0.73858935]
[1768588658532,0.54584525,3287.5,3285.7,0.58634935]
[1768588663333,0.98833027,3287.4,3286.0,0.98833027]
[1768588664037,0.98833027,3287.2,3285.8,0.98833027]
[1768588664830,0.98833027,3286.8,3285.5,48.29496696]
[1768588665035,0.98833027,3286.6,3285.5,7.49496696]
[1768588665336,0.54584525,3287.1,3285.6,0.98833027]
[1768588665638,0.15217,3287.2,3285.8,0.98833027]
[1768588667035,0.98833027,3287.1,3285.8,0.98833027]
[1768588667239,0.98833027,3287.1,3285.6,0.98833027]
[1768588668437,0.98833027,3286.9,3285.6,0.98833027]
[1768588669338,0.54584525,3287.1,3285.5,4.26534935]
[1768588670842,0.54584525,3287.1,3285.6,0.58634935]
[1768588671543,0.15217,3287.2,3285.6,0.58634935]
[1768588674339,0.52949586,3287.5,3285.9,1.5483557]
[1768588674546,0.52949586,3287.5,3286.0,4.29278586]
[1768588678448,0.00384005,3287.7,3286.1,0.55978586]
[1768588686148,0.52949586,3287.4,3286.0,0.15222]
[1768588686348,0.52949586,3287.4,3285.7,4.37575282]
[1768588687455,0.52949586,3287.4,3285.7,0.55978586]
[1768588687948,0.52949586,3287.1,3285.5,3.96821696]
[1768588688150,0.15216,3287.4,3285.6,0.55978586]
[1768588688848,0.15216,3287.4,3285.8,0.55978586]
[1768588690253,0.00384005,3287.7,3285.8,0.55978586]
[1768588690448,0.00384005,3287.7,3286.3,0.55978586]
[1768588691145,0.53333591,3287.7,3286.0,3.81596696]
[1768588691351,0.52949586,3287.3,3286.0,3.81596696]
[1768588691552,1.5180657,3287.0,3286.0,3.81596696]
[1768588691751,0.52949586,3286.9,3285.3,9.48649049]
[1768588692148,0.52949586,3286.9,3285.3,1.94152353]
[1768588692351,0.52949586,3286.5,3285.3,1.38173767]
[1768588696161,0.52949586,3287.0,3285.4,0.55978586]
[1768588699565,0.52949586,3287.0,3285.2,5.03952164]
[1768588699566,0.52949586,3286.6,3285.2,5.03952164]
[1768588707181,0.52949586,3286.6,3285.0,0.00231978]
[1768588709780,0.54643106,3286.3,3285.0,0.00231978]
[1768588710669,0.54643106,3286.2,3285.0,0.00231978]
[1768588710878,0.54643106,3286.1,3285.0,0.00231978]
[1768588717283,0.69865106,3286.1,3285.0,0.00231978]
[1768588717482,0.54643106,3285.9,3285.0,0.00231978]
[1768588717976,0.69866106,3285.9,3285.0,0.00231978]
[1768588718177,0.54643106,3285.8,3285.0,0.00231978]
[1768588719675,0.54643106,3285.8,3284.1,0.53334673]
[1768588719979,0.54643106,3285.7,3284.0,3.81596696]
[1768588720185,0.54643106,3285.7,3283.9,3.96828696]
[1768588720573,0.54643106,3285.7,3283.9,0.15232]
[1768588720774,0.54643106,3285.7,3284.0,0.53334673]
[1768588725284,0.15221,3286.4,3284.7,1.52191657]
[1768588725478,0.69864106,3286.4,3284.7,1.52191657]
[1768588728587,0.54643106,3286.3,3284.7,0.53334673]
[1768588729994,0.54643106,3286.2,3284.4,40.8]
[1768588730287,0.54643106,3285.9,3284.3,0.53334673]
[1768588730687,0.54643106,3285.9,3284.1,3.81596696]
[1768588731282,0.98926604,3285.8,3284.4,0.98926604]
[1768588734798,0.69381494,3286.6,3285.6,0.98926604]
[1768588735196,0.69381494,3286.6,3285.1,0.98926604]
[1768588735388,1.53088098,3286.5,3285.1,0.98926604]
[1768588735584,1.53088098,3286.0,3284.8,0.15228]
[1768588735895,0.98926604,3285.8,3284.5,0.98926604]
[1768588736095,0.54161494,3285.9,3284.5,0.98926604]
[1768588736287,0.54161494,3285.9,3284.7,0.98926604]
[1768588737095,0.15222,3286.2,3284.9,0.98926604]
[1768588737292,0.98926604,3286.1,3284.7,0.98926604]
[1768588737490,0.98926604,3286.1,3284.4,4.34602422]
[1768588737695,1.53088098,3285.8,3284.4,3.81596696]
[1768588737997,1.53088098,3285.8,3284.4,4.805233]
[1768588740702,0.98926604,3285.3,3284.2,40.8]
[1768588740904,0.0025574,3285.3,3284.2,40.8]
[1768588741102,0.0025574,3285.3,3284.2,41.78926604]
[1768588742607,0.0025574,3285.3,3284.4,0.98926604]
[1768588744302,0.0025574,3285.3,3284.2,40.8]
[1768588745201,0.0025574,3285.3,3284.3,0.98926604]
[1768588746506,0.0025574,3285.3,3284.0,3.96828696]
[1768588747009,0.0025574,3285.3,3284.1,0.98926604]
[1768588747214,0.0025574,3285.3,3284.0,3.96828696]
[1768588747501,1.53343838,3285.3,3284.0,3.96828696]
[1768588747708,0.98926604,3284.8,3283.9,0.00252092]
[1768588747903,0.54161494,3284.8,3283.9,0.00252092]
[1768588748802,1.53088098,3285.2,3283.9,0.99178696]
[1768588749404,0.54161494,3285.2,3283.9,0.99178696]
[1768588753616,0.0025574,3285.3,3284.8,0.98926604]
[1768588753811,0.0025574,3285.3,3284.5,0.98926604]
[1768588755807,0.0025574,3285.3,3284.2,0.53005726]
[1768588756307,0.0025574,3285.3,3284.2,1.5193233]
[1768588756606,0.0025574,3285.3,3284.4,0.98926604]
[1768588757412,0.0025574,3285.3,3284.3,0.98926604]
[1768588761428,0.0025574,3285.3,3284.5,0.98926604]
[1768588761625,0.98926604,3286.2,3284.8,0.98926604]
[1768588761825,1.51569164,3286.2,3284.8,0.98926604]
[1768588762127,0.5264256,3286.2,3284.8,0.98926604]
[1768588762325,0.5264256,3286.2,3285.1,0.98926604]
[1768588762721,0.5291485,3286.2,3285.1,0.98926604]
[1768588764129,0.5291485,3286.2,3284.7,41.33579143]
[1768588764326,0.5291485,3286.2,3285.1,0.98926604]
[1768588764619,0.98926604,3285.8,3284.7,40.8]
[1768588765124,1.51569164,3286.0,3284.6,0.98926604]
[1768588765527,0.98926604,3285.8,3284.6,40.8]
[1768588765918,1.51569164,3286.0,3284.6,41.78926604]
[1768588766120,0.0027229,3286.2,3285.3,0.98926604]
[1768588767327,0.0027229,3286.2,3284.7,0.53579143]
[1768588767512,0.0027229,3286.2,3284.9,0.98926604]
[1768588768627,0.0027229,3286.2,3285.1,0.98926604]
[1768588769720,1.52668956,3286.2,3284.7,0.98926604]
[1768588769915,0.98926604,3286.0,3284.7,0.98926604]
[1768588770826,1.52396666,3286.0,3284.6,40.8]
[1768588771020,0.53470062,3285.9,3284.5,1.14155604]
[1768588771421,0.53470062,3285.9,3284.5,41.94155604]
[1768588771623,0.53470062,3285.9,3284.5,1.14155604]
[1768588772129,0.53470062,3285.9,3284.7,0.98926604]
[1768588772926,0.0027229,3286.2,3285.0,0.98926604]
[1768588773330,0.0027229,3286.2,3285.3,0.98926604]
[1768588773820,0.0027229,3286.2,3284.6,0.68135131]
[1768588774029,0.0027229,3286.2,3285.5,0.98926604]
[1768588774224,0.0027229,3286.2,3285.3,0.98926604]
[1768588778127,0.0027229,3286.2,3284.7,0.52906131]
[1768588778320,0.0027229,3286.2,3285.2,0.98926604]
[1768588785331,0.0027229,3286.2,3285.0,0.98926604]
[1768588785918,0.0027229,3286.2,3284.8,42.31832735]
[1768588789533,0.98926604,3285.7,3284.6,0.15229]
[1768588789737,0.98926604,3285.9,3284.6,0.15229]
[1768588790239,0.53470062,3286.0,3284.6,0.15229]
[1768588790433,1.52396666,3286.0,3284.6,0.15229]
[1768588791341,0.53470062,3286.0,3284.6,0.15229]
[1768588792833,0.53470062,3286.0,3284.5,3.81596696]
[1768588792834,0.15223,3285.9,3284.5,3.81596696]
[1768588793043,0.50149625,3285.7,3284.5,3.81596696]
[1768588793238,0.50149625,3285.7,3284.1,3.81596696]
[1768588793637,0.50149625,3285.7,3284.0,4.31483298]
[1768588796441,0.50149625,3285.7,3284.0,0.49886602]
[1768588798239,0.15223,3285.9,3284.0,0.49886602]
[1768588798240,0.15223,3285.9,3284.4,0.49886602]
[1768588803042,0.0027229,3286.2,3284.4,0.49886602]
[1768588803344,0.0027229,3286.2,3284.8,0.49886602]
[1768588803739,0.0027229,3286.2,3285.1,0.98917744]
[1768588804447,0.0027229,3286.2,3284.8,0.49886602]
[1768588812555,0.0027229,3286.2,3284.8,0.65114602]
[1768588812760,0.0027229,3286.2,3284.9,0.49886602]
[1768588814158,0.0027229,3286.2,3284.8,0.15228]
[1768588815855,0.0027229,3286.2,3285.2,0.98917744]
[1768588816459,0.0027229,3286.2,3284.9,0.65113602]
[1768588817159,0.0027229,3286.2,3284.6,3.81596696]
[1768588818668,0.0027229,3286.2,3284.5,4.31483298]
[1768588819164,0.50149625,3285.8,3284.5,3.81596696]
[1768588819566,0.50149625,3285.8,3284.1,0.49886602]
[1768588819869,0.50149625,3285.8,3284.1,1.48804346]
[1768588821472,0.50149625,3285.8,3284.1,0.49886602]
[1768588826885,0.66727399,3285.6,3283.9,0.00252092]
[1768588827082,0.51502399,3285.5,3283.9,0.00252092]
[1768588830077,0.51100067,3285.3,3283.9,0.00252092]
[1768588831276,0.51100067,3285.1,3283.9,0.00252092]
[1768588832675,0.51100067,3285.0,3283.9,0.00252092]
[1768588844877,0.51100067,3285.4,3283.9,0.00252092]
[1768588845784,0.66325067,3285.4,3283.9,0.00252092]
[1768588845984,0.66326067,3285.3,3283.9,0.00252092]
[1768588846794,0.51100067,3285.2,3283.9,0.00252092]
[1768588853301,1.45860914,3285.1,3283.9,0.00252092]
[1768588854293,0.46883784,3285.0,3283.9,0.00252092]
[1768588859896,0.46883784,3285.0,3284.1,0.9897713]
[1768588860902,0.46883784,3285.5,3284.4,0.9897713]
[1768588861889,0.46883784,3285.5,3283.9,3.81848788]
[1768588862088,1.45860914,3285.5,3283.9,3.81848788]
[1768588862302,0.46883784,3285.4,3283.9,4.80825918]
[1768588862503,1.45860914,3285.2,3283.9,0.99229222]
[1768588863201,0.46883784,3285.2,3283.9,0.99229222]
[1768588865203,0.46883784,3285.0,3283.9,0.00252092]
[1768588869306,0.46883784,3285.0,3283.6,0.52269909]
[1768588869506,0.9897713,3283.7,3282.7,0.47575826]
[1768588869808,0.9897713,3284.0,3282.7,0.47575826]
[1768588870398,0.99321589,3284.0,3282.7,0.47895419]
[1768588872296,0.00344459,3284.0,3282.9,0.9897713]
[1768588872499,0.00344459,3284.0,3283.6,0.47575826]
[1768588872704,0.9897713,3284.8,3283.6,0.47575826]
[1768588873704,0.99247472,3284.8,3283.6,0.47575826]
[1768588882919,0.00270342,3284.8,3283.6,0.47575826]
[1768588883116,0.99247472,3284.8,3283.6,0.47575826]
[1768588883317,0.9897713,3284.5,3283.6,0.47575826]
[1768588883617,0.9897713,3284.5,3283.1,1.42344953]
[1768588883820,1.14475472,3284.8,3283.1,1.42344953]
[1768588884021,1.14475472,3284.8,3283.2,0.43367823]
[1768588884514,0.15229,3284.7,3283.2,0.43367823]
[1768588884818,0.9897713,3284.4,3283.2,0.43367823]
[1768588885010,0.9897713,3284.4,3282.8,1.42344953]
[1768588885511,0.9897713,3284.4,3282.9,0.43367823]
[1768588887522,0.9897713,3284.4,3283.0,0.9897713]
[1768588888512,1.1420613,3284.5,3283.1,0.43367823]
[1768588889727,0.15229,3284.5,3283.3,1.46830606]
[1768588894216,0.15229,3284.5,3283.4,0.47853476]
[1768588897727,0.99247472,3284.8,3283.4,0.47853476]
[1768588899130,0.88173661,3284.7,3283.4,0.47853476]
[1768588899332,0.99247472,3284.8,3283.4,0.47853476]
[1768588899531,0.88173671,3284.7,3283.4,0.47853476]
[1768588899826,0.99247472,3284.8,3283.4,0.47853476]
[1768588900033,0.00270342,3284.8,3283.7,0.47853476]
[1768588901530,0.99247472,3284.8,3283.7,0.47853476]
[1768588901933,0.00270342,3284.8,3283.7,0.47853476]
[1768588908642,0.00270342,3284.8,3283.4,0.9897713]
[1768588908643,0.00270342,3284.8,3284.1,0.47853476]
[1768588910237,0.15225,3285.4,3284.4,0.47853476]
[1768588911244,0.15617392,3285.4,3284.4,0.47853476]
[1768588919149,0.15617392,3285.4,3283.8,0.45591296]
[1768588919757,0.15226,3285.2,3283.8,0.45591296]
[1768588920553,0.15227,3285.1,3283.8,0.45591296]
[1768588924458,0.15227,3285.1,3283.0,4.80671857]
[1768588924459,0.87998202,3285.0,3283.2,0.45591296]
[1768588924657,0.15229,3284.6,3283.2,0.45591296]
[1768588925053,0.1523,3284.5,3283.2,0.45591296]
[1768588929063,0.15227,3285.1,3283.2,0.45591296]
[1768588929250,0.15227,3285.1,3283.8,0.45591296]
[1768588935264,0.00392392,3285.4,3283.8,0.45591296]
[1768588936672,0.00392392,3285.4,3284.2,0.45591296]
[1768588940567,0.35895042,3286.9,3284.2,0.60822296]
[1768588940874,0.15221,3286.3,3284.3,0.45591296]
[1768588941074,0.8777943,3286.2,3284.3,0.45591296]
[1768588941276,0.15221,3286.3,3284.3,0.45591296]
[1768588941578,0.87766078,3286.2,3284.3,0.45591296]
[1768588941778,0.15569273,3286.3,3284.3,0.45591296]
[1768588941975,0.87763214,3286.2,3284.3,0.45591296]
[1768588942169,0.15569273,3286.3,3284.3,0.45591296]
[1768588942376,0.87748031,3286.2,3284.3,0.45591296]
[1768588942573,0.15569273,3286.3,3284.6,0.486525]
[1768588943691,0.15222,3286.2,3284.6,0.486525]
[1768588944490,0.15222,3286.0,3284.6,0.486525]
[1768588950301,0.15222,3286.0,3284.9,0.47439578]
[1768588951199,0.00348273,3286.3,3284.9,0.47439578]
[1768588963106,1.695,3287.1,3284.9,0.47439578]
[1768588963310,1.14651642,3287.0,3284.9,0.47439578]
[1768588963505,0.87841807,3286.9,3284.9,0.47439578]
[1768588963814,0.87841807,3286.8,3284.9,0.47439578]
[1768588964002,0.87841807,3286.7,3284.9,0.47439578]
[1768588964204,0.0027114,3286.9,3284.9,0.47439578]
[1768588964504,0.87862217,3286.8,3284.9,0.47439578]
[1768588964709,0.87862217,3286.7,3284.9,0.47439578]
[1768588965006,0.15219,3286.8,3284.9,0.47439578]
[1768588965208,0.87862216,3286.7,3284.9,0.47439578]
[1768588965413,0.87862216,3286.6,3284.9,0.47439578]
[1768588965710,0.15219,3286.8,3284.9,0.47439578]
[1768588965910,0.8788979,3286.7,3284.9,0.47439578]
[1768588966105,0.8788979,3286.6,3284.9,0.47439578]
[1768588966411,0.15219,3286.8,3285.2,0.47439578]
[1768588966607,0.15219,3286.8,3285.2,0.47797202]
[1768588966909,0.0027114,3286.9,3285.2,0.47797202]
[1768588968104,0.0027114,3286.9,3285.6,0.47439578]
[1768588973319,0.0027114,3286.9,3286.1,0.50227887]
[1768588974715,0.98842772,3287.6,3286.3,0.50227887]
[1768588974917,0.87593558,3287.5,3286.3,0.50227887]
[1768588975215,0.98842772,3287.6,3286.3,0.50227887]
[1768588975406,0.87580198,3287.5,3286.3,0.50227887]
[1768588975607,0.00339941,3287.5,3286.7,0.50227887]
[1768588980712,2.68242772,3288.2,3286.9,0.50227887]
[1768588980913,0.87540367,3288.1,3286.9,0.50227887]
[1768588981113,0.87540367,3288.0,3286.9,0.50227887]
[1768588981312,0.98842772,3287.8,3286.9,0.50227887]
[1768588981516,0.98842772,3287.6,3286.2,0.50227887]
[1768588981713,0.98842772,3287.6,3286.2,1.49070659]
[1768588981714,0.9908972,3287.6,3286.2,1.49070659]
[1768588981913,0.9908972,3287.6,3286.3,0.50227887]
[1768588982214,0.98842772,3287.2,3286.3,0.50227887]
[1768588982421,0.98842772,3286.8,3285.7,0.50227887]
[1768588982922,0.98842772,3286.5,3285.7,0.50227887]
[1768588983536,0.98842772,3286.7,3285.7,0.50227887]
[1768588984917,0.15218,3286.9,3285.8,0.98842772]
[1768588985119,0.15218,3286.9,3285.9,0.50227887]
[1768588986627,0.98842772,3286.6,3284.8,0.15228]
[1768588986926,0.98842772,3286.6,3285.3,0.50227887]
[1768588987116,0.98842772,3286.4,3285.3,0.50227887]
[1768588990119,0.98842772,3286.2,3285.2,0.00357624]
[1768588991631,0.98842772,3286.5,3285.2,0.00357624]
[1768588992230,1.8462,3286.6,3285.5,0.50227887]
[1768588992615,0.1522,3286.6,3285.5,0.50227887]
[1768588993523,1.14062772,3286.6,3285.5,0.50227887]
[1768588996331,0.1522,3286.6,3285.5,0.50227887]
[1768589006050,2.68242772,3286.7,3285.6,0.48657856]
[1768589006344,1.694,3286.6,3285.6,0.48657856]
[1768589006733,1.14059772,3287.2,3285.8,0.48657856]
[1768589006936,1.694,3287.1,3285.8,0.48657856]
[1768589007335,0.98842772,3287.0,3285.8,0.48657856]
[1768589007743,0.98842772,3286.6,3285.8,0.48657856]
[1768589012850,0.98842772,3286.6,3285.4,0.51782761]
[1768589014147,0.98842772,3286.4,3285.4,0.51782761]
[1768589014450,0.98842772,3286.7,3285.4,0.51782761]
[1768589015542,0.15218,3286.9,3285.4,0.51782761]
[1768589015744,0.15218,3286.9,3285.7,0.51782761]
[1768589021756,0.98842772,3286.8,3285.7,0.51782761]
[1768589022750,0.15218,3286.9,3285.7,0.51782761]
[1768589022955,0.98842772,3286.8,3285.7,0.51782761]
[1768589023450,0.98842772,3286.2,3285.3,0.51782761]
[1768589025155,0.98842772,3286.4,3285.3,0.51782761]
[1768589026956,0.98842772,3286.2,3285.3,0.51782761]
[1768589027153,0.98842772,3286.0,3285.2,0.00357624]
[1768589030060,0.98842772,3286.2,3285.2,0.00357624]
[1768589035467,0.15221,3286.3,3285.2,0.00357624]
[1768589053392,0.88224812,3286.2,3285.2,0.00357624]
[1768589053686,0.15221,3286.3,3285.2,0.00357624]
[1768589053886,0.88224765,3286.2,3285.2,0.00357624]
[1768589054080,0.15221,3286.3,3285.2,0.00357624]
[1768589054385,0.88224607,3286.2,3285.2,0.00357624]
[1768589054577,0.15221,3286.3,3285.2,0.00357624]
[1768589054772,0.88233699,3286.2,3285.2,0.00357624]
[1768589054976,0.15221,3286.3,3285.2,0.00357624]
[1768589055178,0.88233698,3286.2,3285.2,0.00357624]
[1768589055478,0.15221,3286.3,3285.2,0.00357624]
[1768589055678,0.8824564,3286.2,3285.2,0.00357624]
[1768589055885,0.15221,3286.3,3285.2,0.00357624]
[1768589056087,0.882456,3286.2,3285.2,0.00357624]
[1768589056287,0.15221,3286.3,3285.2,0.00357624]
[1768589056592,0.8826974,3286.2,3285.2,0.00357624]
[1768589056780,0.15221,3286.3,3285.2,0.00357624]
[1768589056978,0.8826963,3286.2,3285.2,0.00357624]
[1768589057178,0.15221,3286.3,3285.2,0.00357624]
[1768589057375,0.88269672,3286.2,3285.2,0.00357624]
[1768589057578,0.15221,3286.3,3285.2,0.00357624]
[1768589057776,0.88311983,3286.2,3285.2,0.00357624]
[1768589057988,0.15221,3286.3,3285.2,0.00357624]
[1768589058179,0.88311959,3286.2,3285.2,0.00357624]
[1768589058380,0.15221,3286.3,3285.2,0.00357624]
[1768589058598,0.88311704,3286.2,3285.2,0.00357624]
[1768589058880,0.15221,3286.3,3285.2,0.00357624]
[1768589059080,0.88311704,3286.2,3285.2,0.00357624]
[1768589059292,0.15221,3286.3,3285.2,0.00357624]
[1768589059591,0.88297265,3286.2,3285.2,0.00357624]
[1768589059785,0.15221,3286.3,3285.2,0.00357624]
[1768589059986,0.88296548,3286.2,3285.2,0.00357624]
[1768589060187,0.15221,3286.3,3285.2,0.00357624]
[1768589060388,0.88296614,3286.2,3285.2,0.00357624]
[1768589060591,0.15221,3286.3,3285.2,0.00357624]
[1768589060791,0.88295012,3286.2,3285.2,0.00357624]
[1768589060983,0.15221,3286.3,3285.2,0.00357624]
[1768589061184,0.88295572,3286.2,3285.2,0.00357624]
[1768589061482,0.15221,3286.3,3285.2,0.00357624]
[1768589061680,0.88294766,3286.2,3285.2,0.00357624]
[1768589061885,0.15221,3286.3,3285.2,0.00357624]
[1768589062081,0.88293261,3286.2,3285.2,0.00357624]
[1768589062291,0.15221,3286.3,3285.2,0.00357624]
[1768589062493,0.88273171,3286.2,3285.2,0.00357624]
[1768589062697,0.15221,3286.3,3285.2,0.00357624]
[1768589062891,0.88272687,3286.2,3285.2,0.00357624]
[1768589063093,0.15221,3286.3,3285.2,0.00357624]
[1768589063282,1.87192,3286.2,3285.2,0.00357624]
[1768589063487,0.88272545,3286.1,3285.2,0.00357624]
[1768589063790,0.98919455,3286.2,3285.2,0.00357624]
[1768589063994,0.88266515,3286.1,3285.2,0.00357624]
[1768589064190,0.98919455,3286.2,3285.2,0.00357624]
[1768589064390,0.88258854,3286.1,3285.2,0.00357624]
[1768589064590,0.98919455,3286.2,3285.2,0.00357624]
[1768589064793,0.88246912,3286.1,3285.2,0.00357624]
[1768589064994,0.98919455,3286.2,3285.2,0.00357624]
[1768589065194,0.88252236,3286.1,3285.2,0.00357624]
[1768589065394,0.98919455,3286.2,3285.2,0.00357624]
[1768589065698,0.88250727,3286.1,3285.2,0.00357624]
[1768589065893,0.98919455,3286.2,3285.2,0.00357624]
[1768589066107,0.88264821,3286.1,3285.2,0.00357624]
[1768589066301,0.98919455,3286.2,3285.2,0.00357624]
[1768589066504,0.88263664,3286.1,3285.2,0.00357624]
[1768589066801,0.98919455,3286.2,3285.2,0.00357624]
[1768589066992,0.88263782,3286.1,3285.2,0.00357624]
[1768589067193,0.98919455,3286.2,3285.2,0.00357624]
[1768589067497,0.88261907,3286.1,3285.2,0.00357624]
[1768589067685,0.98919455,3286.2,3285.2,0.00357624]
[1768589067888,0.88262487,3286.1,3285.2,0.00357624]
[1768589068100,0.98919455,3286.2,3285.2,0.00357624]
[1768589068403,0.88262165,3286.1,3285.2,0.00357624]
[1768589068601,0.98919455,3286.2,3285.2,0.00357624]
[1768589068804,0.88260614,3286.1,3285.2,0.00357624]
[1768589069004,0.98919455,3286.2,3285.2,0.00357624]
[1768589069298,0.8826045,3286.1,3285.2,0.00357624]
[1768589069604,0.98919455,3286.2,3285.2,0.00357624]
[1768589069796,0.88259562,3286.1,3285.2,0.00357624]
[1768589069990,0.15221,3286.3,3285.2,0.00357624]
[1768589070197,0.88277359,3286.2,3285.2,0.00357624]
[1768589070399,0.15221,3286.3,3285.2,0.00357624]
[1768589070599,0.88278007,3286.2,3285.2,0.00357624]
[1768589070799,0.15221,3286.3,3285.2,0.00357624]
[1768589071002,0.88278398,3286.2,3285.2,0.00357624]
[1768589071308,0.15221,3286.3,3285.2,0.00357624]
[1768589071507,0.8827829,3286.2,3285.2,0.00357624]
[1768589071697,0.15221,3286.3,3285.2,0.00357624]
[1768589071892,0.88275286,3286.2,3285.2,0.00357624]
[1768589072197,0.15221,3286.3,3285.2,0.00357624]
[1768589072398,0.88275892,3286.2,3285.2,0.00357624]
[1768589072697,0.15221,3286.3,3285.2,0.00357624]
[1768589072898,0.88276167,3286.2,3285.2,0.00357624]
[1768589073106,0.15221,3286.3,3285.2,0.00357624]
[1768589073306,0.88275851,3286.2,3285.2,0.00357624]
[1768589073508,0.15221,3286.3,3285.2,0.00357624]
[1768589073707,0.88276403,3286.2,3285.2,0.00357624]
[1768589074011,0.15221,3286.3,3285.2,0.00357624]
[1768589074305,0.88276222,3286.2,3285.2,0.00357624]
[1768589074506,0.88276222,3286.1,3285.2,0.00357624]
[1768589074703,0.15221,3286.3,3285.2,0.00357624]
[1768589074909,0.88273306,3286.2,3285.2,0.00357624]
[1768589075104,0.88273306,3286.1,3285.2,0.00357624]
[1768589075409,0.15221,3286.3,3285.2,0.00357624]
[1768589075598,0.88271051,3286.2,3285.2,0.00357624]
[1768589075800,0.88271051,3286.1,3285.2,0.00357624]
[1768589076009,0.15221,3286.3,3285.2,0.00357624]
[1768589076202,0.88270801,3286.2,3285.2,0.00357624]
[1768589076402,0.88270801,3286.1,3285.2,0.00357624]
[1768589076603,0.15221,3286.3,3285.2,0.00357624]
[1768589076803,0.88268535,3286.2,3285.2,0.00357624]
[1768589077100,0.88268535,3286.1,3285.2,0.00357624]
[1768589077302,0.15221,3286.3,3285.2,0.00357624]
[1768589077495,0.88266639,3286.2,3285.2,0.00357624]
[1768589077701,0.88266639,3286.1,3285.2,0.00357624]
[1768589077900,0.15221,3286.3,3285.2,0.00357624]
[1768589078109,0.88266927,3286.2,3285.2,0.00357624]
[1768589078310,0.88266927,3286.1,3285.2,0.00357624]
[1768589078610,0.15221,3286.3,3285.2,0.00357624]
[1768589078808,0.88269197,3286.2,3285.2,0.00357624]
[1768589079110,0.88269197,3286.1,3285.2,0.00357624]
[1768589079301,0.15221,3286.3,3285.2,0.00357624]
[1768589079501,0.88268894,3286.2,3285.2,0.00357624]
[1768589079706,0.88268894,3286.1,3285.2,0.00357624]
[1768589079907,0.15221,3286.3,3285.2,0.00357624]
[1768589080107,0.88268919,3286.2,3285.2,0.00357624]
[1768589080308,0.88268919,3286.1,3285.2,0.00357624]
[1768589080509,0.15221,3286.3,3285.2,0.00357624]
[1768589080808,0.88269071,3286.2,3285.2,0.00357624]
[1768589081009,0.88269071,3286.1,3285.2,0.00357624]
[1768589081204,0.15221,3286.3,3285.2,0.00357624]
[1768589081406,0.88269309,3286.2,3285.2,0.00357624]
[1768589081605,0.88269309,3286.1,3285.2,0.00357624]
[1768589081905,0.15221,3286.3,3285.2,0.00357624]
[1768589082100,0.88269421,3286.2,3285.2,0.00357624]
[1768589082304,0.88269421,3286.1,3285.2,0.00357624]
[1768589082505,0.15221,3286.3,3285.2,0.00357624]
[1768589082809,0.88233053,3286.2,3285.2,0.00357624]